[Event "EIWCC 2017"]
[Site "Riga"]
[Date "2017.04.14"]
[Round "4"]
[White "Gara, Anita"]
[Black "Calzetta Ruiz, Monica"]
[Result "1-0"]
[ECO "B36"]
[WhiteElo "2354"]
[BlackElo "2257"]
[Annotator "NA"]
[PlyCount "71"]
[EventDate "2017.??.??"]
[EventType "swiss"]
[EventCountry "LAT"]
[SourceTitle "playchess.com"]
[Source "ChessBase"]
[SourceQuality "1"]
[TimeControl "40/5400+30:1800+30"]

1. e4 {[%emt 0:00:00]} c5 {[%emt 0:00:05]} 2. Nf3 {[%emt 0:00:00]} Nc6 {[%emt 0:00:19]} 3. d4 {[%emt 0:00:00]} cxd4 {[%emt 0:00:04]} 4. Nxd4 {[%emt 0:00:00]} g6 {[%emt 0:00:30]} 5. c4 {[%emt 0:00:00]} Nf6 {[%emt 0:00:11]} 6. Nc3 {[%emt 0:00:03]} d6 {[%emt 0:00:13]} 7. Be2 {[%emt 0:00:22]} Bg7 {[%emt 0:00:12]} 8. Be3 {[%emt 0:01:15]} O-O {[%emt 0:00:10]} 9. Qd2 {[%emt 0:04:38]} Bd7 {[%emt 0:02:33]} 10. f3 {[%emt 0:00:09]} Nxd4 {[%emt 0:00:43]} 11. Bxd4 {[%emt 0:00:03]} a5 {[%emt 0:00:16]} 12. O-O {[%emt 0:08:26]} Bc6 {[%emt 0:02:18]} 13. b3 {[%emt 0:03:17]} Nd7 {[%emt 0:00:13]} 14. Be3 {[%emt 0:00:16]} Nc5 {[%emt 0:00:33]} 15. Rac1 {[%emt 0:00:35]} e6 {[%emt 0:06:48]} 16. Nb5 {[%emt 0:02:08]} Be5 {[%emt 0:00:55]} 17. g3 {[%emt 0:00:17]} f5 {[%emt 0:23:37]} 18. Rcd1 {[%emt 0:01:35]} fxe4 {[%emt 0:03:06]} 19. f4 {[%emt 0:00:24]} Bg7 {[%emt 0:10:07]} 20. Qxd6 {[%emt 0:00:31]} Nd3 {[%emt 0:08:19]} 21. Qxe6+ {[%emt 0:05:48]} Kh8 {[%emt 0:01:08]} 22. Nd6 {[%emt 0:00:07]} Rf6 {[%emt 0:05:33]} 23. Bxd3 {[%emt 0:04:24]} Qf8 {[%emt 0:14:40]} 24. Qg4 {[%emt 0:06:04]} Rxd6 {[%emt 0:04:53]} 25. Bc2 {[%emt 0:01:47]} Rxd1 {[%emt 0:01:18]} 26. Rxd1 {[%emt 0:00:18]} Qb4 {[%emt 0:02:30]} 27. Qe2 {[%emt 0:12:54]} Qa3 {[%emt 0:01:42]} 28. Qd2 {[%emt 0:09:21]} Qxa2 {[%emt 0:02:11]} 29. Bd4 {[%emt 0:01:01]} Re8 {[%emt 0:00:04]} 30. Bxg7+ {[%emt 0:01:41]} Kxg7 {[%emt 0:00:02]} 31. Qc3+ {[%emt 0:00:25]} Kg8 {[%emt 0:00:37]} 32. Ra1 {[%emt 0:00:16]} Qxa1+ {[%emt 0:00:31]} 33. Qxa1 {[%emt 0:00:04]} e3 {[%emt 0:00:05]} 34. Kf1 {[%emt 0:00:28]} e2+ {[%emt 0:00:46]} 35. Ke1 {[%emt 0:00:04]} Bf3 {[%emt 0:06:19]} 36. Qxa5 {[%emt 0:03:34]} 1-0

[Event "EIWCC 2017"]
[Site "Riga"]
[Date "2017.04.14"]
[Round "4"]
[White "Milliet, Sophie"]
[Black "Isgandarova, Khayala"]
[Result "1/2-1/2"]
[ECO "C11"]
[WhiteElo "2352"]
[BlackElo "2211"]
[Annotator "NA"]
[PlyCount "46"]
[EventDate "2017.??.??"]
[EventType "swiss"]
[EventCountry "LAT"]
[SourceTitle "playchess.com"]
[Source "ChessBase"]
[SourceQuality "1"]
[TimeControl "40/5400+30:1800+30"]

1. e4 {[%emt 0:00:00]} e6 {[%emt 0:00:10]} 2. d4 {[%emt 0:00:00]} d5 {[%emt 0:00:03]} 3. Nc3 {[%emt 0:00:00]} Nf6 {[%emt 0:00:04]} 4. e5 {[%emt 0:00:00]} Nfd7 {[%emt 0:00:06]} 5. f4 {[%emt 0:00:00]} c5 {[%emt 0:00:07]} 6. Nf3 {[%emt 0:00:05]} Nc6 {[%emt 0:00:15]} 7. Be3 {[%emt 0:00:06]} Be7 {[%emt 0:00:14]} 8. Qd2 {[%emt 0:00:46]} O-O {[%emt 0:01:04]} 9. dxc5 {[%emt 0:02:43]} Nxc5 {[%emt 0:00:14]} 10. O-O-O {[%emt 0:02:21]} a6 {[%emt 0:16:17]} 11. h4 {[%emt 0:01:02]} b6 {[%emt 0:02:00]} 12. h5 {[%emt 0:14:21]} f5 {[%emt 0:02:52]} 13. exf6 {[%emt 0:10:03]} Bxf6 {[%emt 0:05:32]} 14. Nd4 {[%emt 0:00:09]} Nxd4 {[%emt 0:20:55]} 15. Bxd4 {[%emt 0:00:04]} Bb7 {[%emt 0:06:01]} 16. h6 {[%emt 0:37:02]} Bxd4 {[%emt 0:02:31]} 17. Qxd4 {[%emt 0:00:01]} Qf6 {[%emt 0:00:33]} 18. Kb1 {[%emt 0:04:10]} Qxd4 {[%emt 0:03:11]} 19. Rxd4 {[%emt 0:00:01]} gxh6 {[%emt 0:00:21]} 20. Be2 {[%emt 0:03:59]} Ne4 {[%emt 0:08:00]} 21. Nxe4 {[%emt 0:00:10]} Rxf4 {[%emt 0:00:21]} 22. Rxh6 {[%emt 0:01:45]} Raf8 {[%emt 0:09:46]} 23. b3 {[%emt 0:11:19]} dxe4 {[%emt 0:01:23]} 1/2-1/2

[Event "EIWCC 2017"]
[Site "Riga"]
[Date "2017.04.14"]
[Round "4"]
[White "Antova, Gabriela"]
[Black "Paramzina, Anastasya"]
[Result "1-0"]
[ECO "E10"]
[WhiteElo "2335"]
[BlackElo "2202"]
[Annotator "NA"]
[PlyCount "77"]
[EventDate "2017.??.??"]
[EventType "swiss"]
[EventCountry "LAT"]
[SourceTitle "playchess.com"]
[Source "ChessBase"]
[SourceQuality "1"]
[TimeControl "40/5400+30:1800+30"]

1. d4 {[%emt 0:00:00]} Nf6 {[%emt 0:00:49]} 2. c4 {[%emt 0:00:00]} e6 {[%emt 0:00:07]} 3. Nf3 {[%emt 0:00:00]} c5 {[%emt 0:00:06]} 4. d5 {[%emt 0:06:56]} exd5 {[%emt 0:00:12]} 5. cxd5 {[%emt 0:00:06]} Bd6 {[%emt 0:00:09]} 6. Nc3 {[%emt 0:03:42]} Bc7 {[%emt 0:00:27]} 7. e4 {[%emt 0:11:06]} d6 {[%emt 0:00:07]} 8. Nd2 {[%emt 0:00:57]} O-O {[%emt 0:00:40]} 9. Bd3 {[%emt 0:00:14]} a6 {[%emt 0:00:14]} 10. a4 {[%emt 0:00:30]} Nbd7 {[%emt 0:00:25]} 11. Nc4 {[%emt 0:02:19]} Re8 {[%emt 0:01:59]} 12. O-O {[%emt 0:00:37]} b6 {[%emt 0:01:19]} 13. Bf4 {[%emt 0:09:59]} Nf8 {[%emt 0:00:56]} 14. Re1 {[%emt 0:01:22]} Ng6 {[%emt 0:00:15]} 15. Bg3 {[%emt 0:00:10]} Rb8 {[%emt 0:00:10]} 16. Ne3 {[%emt 0:16:21]} Ne5 {[%emt 0:14:28]} 17. Be2 {[%emt 0:01:01]} Qd7 {[%emt 0:01:20]} 18. f4 {[%emt 0:09:16]} Ng6 {[%emt 0:02:02]} 19. Bf3 {[%emt 0:00:11]} b5 {[%emt 0:00:51]} 20. axb5 {[%emt 0:00:11]} axb5 {[%emt 0:00:04]} 21. Qc2 {[%emt 0:01:52]} c4 {[%emt 0:07:44]} 22. Kh1 {[%emt 0:01:35]} Qd8 {[%emt 0:12:35]} 23. Ncd1 {[%emt 0:12:15]} Ba5 {[%emt 0:05:15]} 24. Rf1 {[%emt 0:00:31]} h5 {[%emt 0:05:14]} 25. h3 {[%emt 0:00:19]} h4 {[%emt 0:00:04]} 26. Bh2 {[%emt 0:00:09]} Qb6 {[%emt 0:04:23]} 27. Nf2 {[%emt 0:04:43]} Bb4 {[%emt 0:03:29]} 28. Nfg4 {[%emt 0:01:09]} Nd7 {[%emt 0:10:49]} 29. Nf5 {[%emt 0:01:15]} Bc5 {[%emt 0:00:59]} 30. Qc3 {[%emt 0:00:53]} f6 {[%emt 0:00:04]} 31. Qd2 {[%emt 0:06:27]} Ndf8 {[%emt 0:05:15]} 32. Nxg7 {[%emt 0:02:33]} Kxg7 {[%emt 0:06:20]} 33. f5 {[%emt 0:00:06]} Ne5 {[%emt 0:00:50]} 34. Qh6+ {[%emt 0:00:05]} Kf7 {[%emt 0:00:18]} 35. Qxf6+ {[%emt 0:00:42]} Kg8 {[%emt 0:00:03]} 36. Qg5+ {[%emt 0:02:01]} Kh8 {[%emt 0:00:35]} 37. Qh5+ {[%emt 0:00:32]} Kg7 {[%emt 0:00:16]} 38. Qxe8 {[%emt 0:02:04]} Nf7 {[%emt 0:00:59]} 39. Qe7 {[%emt 0:00:28]} 1-0

[Event "EIWCC 2017"]
[Site "Riga"]
[Date "2017.04.14"]
[Round "4"]
[White "Gara, Ticia"]
[Black "Utiatskaja, Irina"]
[Result "1-0"]
[ECO "A06"]
[WhiteElo "2325"]
[BlackElo "2152"]
[Annotator "NA"]
[PlyCount "105"]
[EventDate "2017.??.??"]
[EventType "swiss"]
[EventCountry "LAT"]
[SourceTitle "playchess.com"]
[Source "ChessBase"]
[SourceQuality "1"]
[TimeControl "40/5400+30:1800+30"]

1. Nf3 {[%emt 0:00:00]} d5 {[%emt 0:00:08]} 2. g3 {[%emt 0:00:00]} Bg4 {[%emt 0:00:18]} 3. Bg2 {[%emt 0:00:00]} Nd7 {[%emt 0:00:11]} 4. O-O {[%emt 0:00:53]} c6 {[%emt 0:00:25]} 5. c4 {[%emt 0:04:03]} e6 {[%emt 0:03:32]} 6. d3 {[%emt 0:02:32]} Ngf6 {[%emt 0:00:14]} 7. cxd5 {[%emt 0:02:21]} exd5 {[%emt 0:02:07]} 8. Nc3 {[%emt 0:00:31]} Be7 {[%emt 0:01:25]} 9. h3 {[%emt 0:02:14]} Bxf3 {[%emt 0:04:35]} 10. Bxf3 {[%emt 0:00:06]} O-O {[%emt 0:00:03]} 11. d4 {[%emt 0:08:45]} Bd6 {[%emt 0:03:15]} 12. Qc2 {[%emt 0:00:35]} Re8 {[%emt 0:00:34]} 13. Re1 {[%emt 0:12:43]} Nf8 {[%emt 0:16:18]} 14. Bd2 {[%emt 0:13:53]} Ne6 {[%emt 0:00:44]} 15. Qd3 {[%emt 0:01:06]} Qb6 {[%emt 0:00:45]} 16. Be3 {[%emt 0:01:47]} Qxb2 {[%emt 0:15:33]} 17. Reb1 {[%emt 0:04:58]} Qa3 {[%emt 0:00:05]} 18. Rxb7 {[%emt 0:01:34]} Bb4 {[%emt 0:06:51]} 19. Nd1 {[%emt 0:14:04]} Qxd3 {[%emt 0:01:00]} 20. exd3 {[%emt 0:00:02]} Bd6 {[%emt 0:01:09]} 21. Rc1 {[%emt 0:01:31]} Nd8 {[%emt 0:01:29]} 22. Rb3 {[%emt 0:00:15]} Rc8 {[%emt 0:02:21]} 23. Kg2 {[%emt 0:03:55]} Ne6 {[%emt 0:05:35]} 24. Rbc3 {[%emt 0:00:37]} Nd8 {[%emt 0:02:20]} 25. Bg5 {[%emt 0:00:23]} Rb8 {[%emt 0:00:19]} 26. Bxf6 {[%emt 0:01:14]} gxf6 {[%emt 0:00:04]} 27. Ne3 {[%emt 0:04:05]} Rb6 {[%emt 0:00:41]} 28. Bxd5 {[%emt 0:04:51]} Rxe3 {[%emt 0:00:53]} 29. fxe3 {[%emt 0:01:02]} cxd5 {[%emt 0:00:06]} 30. Rc8 {[%emt 0:00:02]} Be7 {[%emt 0:00:05]} 31. R1c7 {[%emt 0:01:02]} Kf8 {[%emt 0:01:08]} 32. Rxa7 {[%emt 0:00:54]} Ke8 {[%emt 0:00:47]} 33. Kf3 {[%emt 0:02:15]} Rb2 {[%emt 0:00:38]} 34. e4 {[%emt 0:01:49]} Rd2 {[%emt 0:00:34]} 35. Ke3 {[%emt 0:01:27]} Rg2 {[%emt 0:00:08]} 36. Kf3 {[%emt 0:04:51]} Rd2 {[%emt 0:00:05]} 37. Rc3 {[%emt 0:01:44]} dxe4+ {[%emt 0:00:28]} 38. Kxe4 {[%emt 0:00:24]} Rh2 {[%emt 0:00:42]} 39. d5 {[%emt 0:02:56]} Rxh3 {[%emt 0:00:38]} 40. d4 {[%emt 0:00:00]} h5 {[%emt 0:02:49]} 41. Re3 {[%emt 0:04:13]} Kf8 {[%emt 0:04:35]} 42. Kf3 {[%emt 0:02:51]} h4 {[%emt 0:01:59]} 43. Raxe7 {[%emt 0:01:44]} Rxg3+ {[%emt 0:00:58]} 44. Kf2 {[%emt 0:00:38]} Ne6 {[%emt 0:00:05]} 45. Rxf7+ {[%emt 0:10:20]} Kxf7 {[%emt 0:00:09]} 46. dxe6+ {[%emt 0:00:05]} Ke7 {[%emt 0:00:05]} 47. Rxg3 {[%emt 0:00:24]} hxg3+ {[%emt 0:00:06]} 48. Kxg3 {[%emt 0:00:03]} Kxe6 {[%emt 0:00:04]} 49. a4 {[%emt 0:00:05]} Kd5 {[%emt 0:00:24]} 50. a5 {[%emt 0:00:04]} Kc6 {[%emt 0:00:04]} 51. Kf4 {[%emt 0:00:14]} Kb5 {[%emt 0:00:11]} 52. Kf5 {[%emt 0:00:18]} Kxa5 {[%emt 0:00:18]} 53. Kxf6 {[%emt 0:00:23]} 1-0

[Event "EIWCC 2017"]
[Site "Riga"]
[Date "2017.04.14"]
[Round "4"]
[White "Buksa, Nataliya"]
[Black "Makka, Ioulia"]
[Result "1-0"]
[ECO "B12"]
[WhiteElo "2314"]
[BlackElo "2069"]
[Annotator "NA"]
[PlyCount "109"]
[EventDate "2017.??.??"]
[EventType "swiss"]
[EventCountry "LAT"]
[SourceTitle "playchess.com"]
[Source "ChessBase"]
[SourceQuality "1"]
[TimeControl "40/5400+30:1800+30"]

1. e4 {[%emt 0:00:00]} c6 {[%emt 0:00:15]} 2. d4 {[%emt 0:00:00]} d5 {[%emt 0:00:05]} 3. e5 {[%emt 0:00:00]} Bf5 {[%emt 0:00:08]} 4. h4 {[%emt 0:00:04]} h5 {[%emt 0:04:47]} 5. Bd3 {[%emt 0:00:50]} Bxd3 {[%emt 0:02:11]} 6. Qxd3 {[%emt 0:00:02]} e6 {[%emt 0:01:08]} 7. Bg5 {[%emt 0:00:09]} Be7 {[%emt 0:01:55]} 8. Nf3 {[%emt 0:02:13]} Nh6 {[%emt 0:03:50]} 9. Nbd2 {[%emt 0:15:45]} Nf5 {[%emt 0:01:06]} 10. b3 {[%emt 0:03:39]} Nd7 {[%emt 0:11:47]} 11. c4 {[%emt 0:01:32]} Qa5 {[%emt 0:11:52]} 12. O-O {[%emt 0:08:20]} O-O {[%emt 0:03:41]} 13. Bxe7 {[%emt 0:07:33]} Nxe7 {[%emt 0:00:07]} 14. Ng5 {[%emt 0:03:24]} Nf5 {[%emt 0:01:40]} 15. Ndf3 {[%emt 0:00:04]} Rfd8 {[%emt 0:06:08]} 16. Qe2 {[%emt 0:06:06]} dxc4 {[%emt 0:06:37]} 17. bxc4 {[%emt 0:00:58]} Nf8 {[%emt 0:02:17]} 18. Rfd1 {[%emt 0:00:49]} Rd7 {[%emt 0:02:03]} 19. Rd2 {[%emt 0:04:54]} Rad8 {[%emt 0:06:51]} 20. Rad1 {[%emt 0:00:02]} Qb4 {[%emt 0:11:01]} 21. Ne4 {[%emt 0:09:34]} Qe7 {[%emt 0:13:50]} 22. g3 {[%emt 0:04:17]} b6 {[%emt 0:01:53]} 23. Kg2 {[%emt 0:03:00]} f6 {[%emt 0:03:15]} 24. Rd3 {[%emt 0:08:25]} Qf7 {[%emt 0:00:49]} 25. Nc3 {[%emt 0:02:15]} Qg6 {[%emt 0:01:22]} 26. Qe4 {[%emt 0:02:35]} Qg4 {[%emt 0:01:41]} 27. Qxc6 {[%emt 0:03:37]} Nxd4 {[%emt 0:00:14]} 28. Rxd4 {[%emt 0:01:20]} Rxd4 {[%emt 0:00:13]} 29. Nxd4 {[%emt 0:00:03]} fxe5 {[%emt 0:01:35]} 30. f3 {[%emt 0:02:50]} Qg6 {[%emt 0:00:13]} 31. Nde2 {[%emt 0:00:03]} Rxd1 {[%emt 0:00:49]} 32. Nxd1 {[%emt 0:00:01]} Qc2 {[%emt 0:00:31]} 33. Ndc3 {[%emt 0:00:02]} Qd2 {[%emt 0:00:27]} 34. Kf2 {[%emt 0:00:41]} Qb2 {[%emt 0:00:28]} 35. Qc7 {[%emt 0:00:35]} Qb4 {[%emt 0:00:19]} 36. Ne4 {[%emt 0:00:05]} Nh7 {[%emt 0:00:45]} 37. Ng5 {[%emt 0:03:35]} Nxg5 {[%emt 0:00:30]} 38. hxg5 {[%emt 0:00:01]} Kh7 {[%emt 0:00:21]} 39. Qc6 {[%emt 0:02:01]} Qb2 {[%emt 0:00:33]} 40. Qxe6 {[%emt 0:00:00]} Qxa2 {[%emt 0:00:26]} 41. Qf7 {[%emt 0:01:08]} Qa5 {[%emt 0:07:24]} 42. Qxh5+ {[%emt 0:02:07]} Kg8 {[%emt 0:00:05]} 43. Qe8+ {[%emt 0:00:22]} Kh7 {[%emt 0:00:03]} 44. Qc6 {[%emt 0:01:12]} Qb4 {[%emt 0:05:52]} 45. Qe4+ {[%emt 0:06:03]} g6 {[%emt 0:03:49]} 46. Qb7+ {[%emt 0:00:33]} Kg8 {[%emt 0:00:16]} 47. Qb8+ {[%emt 0:00:13]} Kf7 {[%emt 0:01:03]} 48. Qxa7+ {[%emt 0:00:02]} Kf8 {[%emt 0:01:25]} 49. Qc7 {[%emt 0:00:58]} Qa5 {[%emt 0:02:16]} 50. c5 {[%emt 0:01:07]} Qxc5+ {[%emt 0:01:48]} 51. Qxc5+ {[%emt 0:00:09]} bxc5 {[%emt 0:00:06]} 52. Ke3 {[%emt 0:00:04]} Ke7 {[%emt 0:00:21]} 53. Ke4 {[%emt 0:00:07]} Ke6 {[%emt 0:00:31]} 54. f4 {[%emt 0:00:02]} exf4 {[%emt 0:00:20]} 55. gxf4 {[%emt 0:00:02]} 1-0

[Event "EIWCC 2017"]
[Site "Riga"]
[Date "2017.04.14"]
[Round "4"]
[White "Galojan, Lilit"]
[Black "Chan, Naruna"]
[Result "0-1"]
[ECO "D10"]
[WhiteElo "2290"]
[BlackElo "1981"]
[Annotator "NA"]
[PlyCount "158"]
[EventDate "2017.??.??"]
[EventType "swiss"]
[EventCountry "LAT"]
[SourceTitle "playchess.com"]
[Source "ChessBase"]
[SourceQuality "1"]
[TimeControl "40/5400+30:1800+30"]

1. d4 {[%emt 0:00:00]} d5 {[%emt 0:00:06]} 2. c4 {[%emt 0:01:14]} c6 {[%emt 0:00:18]} 3. e3 {[%emt 0:02:02]} Nf6 {[%emt 0:02:30]} 4. Bd3 {[%emt 0:01:21]} Qc7 {[%emt 0:09:21]} 5. Nc3 {[%emt 0:08:38]} dxc4 {[%emt 0:00:50]} 6. Bxc4 {[%emt 0:00:06]} Bf5 {[%emt 0:00:16]} 7. Nf3 {[%emt 0:03:30]} e6 {[%emt 0:00:09]} 8. O-O {[%emt 0:03:23]} Be7 {[%emt 0:02:02]} 9. Qe2 {[%emt 0:01:24]} b5 {[%emt 0:10:43]} 10. Bd3 {[%emt 0:30:01]} Bxd3 {[%emt 0:08:23]} 11. Qxd3 {[%emt 0:00:04]} Nbd7 {[%emt 0:02:02]} 12. e4 {[%emt 0:02:06]} b4 {[%emt 0:06:57]} 13. Na4 {[%emt 0:00:16]} e5 {[%emt 0:04:12]} 14. Bg5 {[%emt 0:09:12]} O-O {[%emt 0:01:01]} 15. Nxe5 {[%emt 0:06:35]} Nxe5 {[%emt 0:04:28]} 16. dxe5 {[%emt 0:00:01]} Qxe5 {[%emt 0:00:02]} 17. f4 {[%emt 0:00:45]} Qb5 {[%emt 0:06:48]} 18. Qc2 {[%emt 0:00:17]} Rfe8 {[%emt 0:00:49]} 19. e5 {[%emt 0:12:13]} Nd5 {[%emt 0:02:46]} 20. Bxe7 {[%emt 0:00:06]} Ne3 {[%emt 0:02:25]} 21. Qb3 {[%emt 0:16:43]} Nxf1 {[%emt 0:01:24]} 22. Bd6 {[%emt 0:00:21]} Nd2 {[%emt 0:01:39]} 23. Qxb4 {[%emt 0:00:20]} Nc4 {[%emt 0:06:37]} 24. Bc5 {[%emt 0:00:35]} a5 {[%emt 0:07:18]} 25. Qxb5 {[%emt 0:00:31]} cxb5 {[%emt 0:00:02]} 26. Nc3 {[%emt 0:00:43]} Rec8 {[%emt 0:05:05]} 27. b4 {[%emt 0:00:15]} axb4 {[%emt 0:04:53]} 28. Bxb4 {[%emt 0:00:01]} Ne3 {[%emt 0:00:39]} 29. Rb1 {[%emt 0:01:05]} Nc2 {[%emt 0:00:25]} 30. Nd5 {[%emt 0:00:34]} Rd8 {[%emt 0:03:25]} 31. Bd6 {[%emt 0:00:16]} Rxa2 {[%emt 0:00:21]} 32. Nc3 {[%emt 0:00:42]} Ra7 {[%emt 0:02:37]} 33. Rxb5 {[%emt 0:00:38]} h6 {[%emt 0:01:55]} 34. Kf2 {[%emt 0:00:27]} Nd4 {[%emt 0:00:49]} 35. Rb2 {[%emt 0:00:32]} Nf5 {[%emt 0:00:32]} 36. Bc5 {[%emt 0:00:29]} Rad7 {[%emt 0:00:47]} 37. Ne4 {[%emt 0:00:16]} Rd5 {[%emt 0:00:44]} 38. g4 {[%emt 0:00:22]} Nd4 {[%emt 0:00:50]} 39. Bd6 {[%emt 0:00:43]} Ne6 {[%emt 0:00:26]} 40. Ke3 {[%emt 0:00:00]} Rd1 {[%emt 0:02:31]} 41. f5 {[%emt 0:08:28]} Re1+ {[%emt 0:02:42]} 42. Re2 {[%emt 0:05:10]} Rxe2+ {[%emt 0:01:32]} 43. Kxe2 {[%emt 0:00:05]} Nd4+ {[%emt 0:00:42]} 44. Ke3 {[%emt 0:01:14]} Nb5 {[%emt 0:02:32]} 45. Be7 {[%emt 0:08:43]} Rd1 {[%emt 0:00:48]} 46. h4 {[%emt 0:05:42]} Nc7 {[%emt 0:04:49]} 47. Bd6 {[%emt 0:03:30]} Nd5+ {[%emt 0:00:27]} 48. Ke2 {[%emt 0:00:36]} Rd4 {[%emt 0:00:31]} 49. Kf3 {[%emt 0:00:49]} Rd3+ {[%emt 0:01:37]} 50. Kf2 {[%emt 0:00:02]} Rh3 {[%emt 0:05:54]} 51. h5 {[%emt 0:00:39]} Ne3 {[%emt 0:00:25]} 52. e6 {[%emt 0:01:42]} fxe6 {[%emt 0:00:17]} 53. fxe6 {[%emt 0:00:06]} Nxg4+ {[%emt 0:00:17]} 54. Kg2 {[%emt 0:00:36]} Re3 {[%emt 0:01:09]} 55. Nc5 {[%emt 0:00:02]} Nf6 {[%emt 0:02:40]} 56. Kf2 {[%emt 0:00:37]} Rh3 {[%emt 0:00:15]} 57. Nd7 {[%emt 0:00:52]} Ne8 {[%emt 0:00:11]} 58. Bf4 {[%emt 0:00:43]} Rxh5 {[%emt 0:00:08]} 59. Kf3 {[%emt 0:00:04]} Rh1 {[%emt 0:00:46]} 60. Ke4 {[%emt 0:01:01]} g5 {[%emt 0:01:07]} 61. Be5 {[%emt 0:00:08]} Rf1 {[%emt 0:01:59]} 62. Kd5 {[%emt 0:00:45]} g4 {[%emt 0:00:36]} 63. Nc5 {[%emt 0:00:30]} h5 {[%emt 0:00:43]} 64. Kc6 {[%emt 0:00:37]} Rd1 {[%emt 0:00:10]} 65. Bg3 {[%emt 0:00:17]} Kg7 {[%emt 0:00:33]} 66. Bh4 {[%emt 0:00:38]} Kg6 {[%emt 0:01:48]} 67. Nb7 {[%emt 0:00:35]} Kf5 {[%emt 0:00:25]} 68. e7 {[%emt 0:00:02]} Kf4 {[%emt 0:01:17]} 69. Bf2 {[%emt 0:00:59]} g3 {[%emt 0:00:18]} 70. Bc5 {[%emt 0:00:04]} Ke5 {[%emt 0:00:56]} 71. Nd8 {[%emt 0:00:44]} g2 {[%emt 0:00:36]} 72. Nf7+ {[%emt 0:00:01]} Kf6 {[%emt 0:00:13]} 73. Nh6 {[%emt 0:00:57]} g1=Q {[%emt 0:00:11]} 74. Bxg1 {[%emt 0:00:06]} Rxg1 {[%emt 0:00:04]} 75. Kd7 {[%emt 0:00:07]} Ng7 {[%emt 0:00:57]} 76. Ng8+ {[%emt 0:00:06]} Kg6 {[%emt 0:00:40]} 77. e8=B+ {[%emt 0:01:15]} Nxe8 {[%emt 0:00:07]} 78. Kxe8 {[%emt 0:00:04]} Re1+ {[%emt 0:00:18]} 79. Kd8 {[%emt 0:00:21]} h4 {[%emt 0:00:11]} 0-1

[Event "EIWCC 2017"]
[Site "Riga"]
[Date "2017.04.14"]
[Round "4"]
[White "Travkina, Anastasia"]
[Black "Pustovoitova, Daria"]
[Result "0-1"]
[ECO "B81"]
[WhiteElo "2287"]
[BlackElo "2411"]
[Annotator "NA"]
[PlyCount "46"]
[EventDate "2017.??.??"]
[EventType "swiss"]
[EventCountry "LAT"]
[SourceTitle "playchess.com"]
[Source "ChessBase"]
[SourceQuality "1"]
[TimeControl "40/5400+30:1800+30"]

1. e4 {[%emt 0:00:00]} c5 {[%emt 0:00:02]} 2. Nf3 {[%emt 0:00:00]} d6 {[%emt 0:00:03]} 3. d4 {[%emt 0:00:00]} cxd4 {[%emt 0:00:04]} 4. Nxd4 {[%emt 0:00:00]} Nf6 {[%emt 0:00:07]} 5. Nc3 {[%emt 0:00:00]} e6 {[%emt 0:00:08]} 6. g4 {[%emt 0:00:23]} h6 {[%emt 0:00:11]} 7. h3 {[%emt 0:00:05] B81: Sicilian Scheveningen: Keres Attack} (7. Bg2 Nc6 8. h3 g5 9. Nxc6 bxc6 10. e5 Nd5 11. exd6 Qxd6 12. O-O Ba6 13. Re1 Be7 14. Ne4 Qc7 15. c4 Nb4 16. b3 {1-0 (59) Carlsen,M (2840)-Van Wely,L (2695) Wijk aan Zee 2017}) 7... Be7 {[%emt 0:05:39]} 8. Bg2 {[%emt 0:00:21]} a6 {[%emt 0:01:39]} 9. Be3 {[%emt 0:00:59]} Nc6 {[%emt 0:01:06]} 10. Qe2 {[%emt 0:05:00]} Nxd4 {[%emt 0:09:31]} 11. Bxd4 {[%emt 0:00:06]} e5 {[%emt 0:00:08]} 12. Be3 {[%emt 0:00:16]} Be6 {[%emt 0:01:28]} 13. O-O-O {[%emt 0:15:38]} Rc8 {[%emt 0:04:03]} 14. Nd5 {[%emt 0:01:16]} Bxd5 {[%emt 0:00:48]} 15. exd5 {[%emt 0:00:09]} Nd7 {[%emt 0:00:49]} 16. Kb1 {[%emt 0:11:34]} O-O $146 {[%emt 0:05:31]} 17. Be4 {[%emt 0:19:47]} Bg5 {[%emt 0:07:33]} 18. h4 {[%emt 0:09:42]} Bxh4 {[%emt 0:11:42]} 19. Bxh6 {[%emt 0:16:01]} gxh6 {[%emt 0:04:09]} 20. g5 {[%emt 0:00:30]} Bxg5 {[%emt 0:02:18]} 21. Rdg1 {[%emt 0:11:49]} Qf6 {[%emt 0:01:54]} 22. Qe3 {[%emt 0:06:51]} Qg7 {[%emt 0:04:27]} 23. Qh3 {[%emt 0:00:28]} Nf6 {[%emt 0:00:27]} 0-1